bitfinex/quotes_SOLUSD_20260220
["timestamp","ask_amount","ask_price","bid_price","bid_amount"]
[1771602275164,2.24518398,83.491,83.453,2.18500348]
[1771602275165,11.79966366,83.49,83.453,2.18500348]
[1771602275558,11.79966366,83.49,83.455,2.18500348]
[1771602276468,11.97762579,83.489,83.455,2.18500348]
[1771602277057,11.79966366,83.49,83.455,2.18500348]
[1771602277259,11.97762579,83.489,83.455,2.18500348]
[1771602277455,11.79966366,83.48,83.455,2.18500348]
[1771602277756,11.79966366,83.48,83.456,11.98236196]
[1771602278262,2.21937661,83.489,83.457,2.29568303]
[1771602279068,29.93663938,83.51,83.456,11.98236196]
[1771602279069,14.19384243,83.512,83.461,2.29568303]
[1771602279264,11.79966366,83.51,83.471,2.29568303]
[1771602279762,11.97475721,83.509,83.473,2.29568303]
[1771602280489,11.79966366,83.49,83.472,11.98006517]
[1771602280686,11.79966366,83.48,83.457,11.98221838]
[1771602281962,11.79966366,83.47,83.45,0.1]
[1771602282168,11.79966366,83.46,83.45,0.1]
[1771602283360,14.01904027,83.47,83.45,0.1]
[1771602283561,11.79966366,83.47,83.45,0.1]
[1771602284676,0.14216157,83.487,83.45,0.1]
[1771602284677,11.97590448,83.501,83.451,2.29568303]
[1771602284857,11.79966366,83.49,83.451,2.29568303]
[1771602285888,11.79966366,83.48,83.451,2.29568303]
[1771602286778,11.9790606,83.479,83.451,11.98307989]
[1771602287280,11.79966366,83.46,83.45,0.1]
[1771602288018,11.79966366,83.47,83.45,0.1]
[1771602288398,29.94365026,83.491,83.45,0.1]
[1771602288399,11.79966366,83.49,83.452,2.29568303]
[1771602288681,60.12284487,83.55,83.45,11.89966366]
[1771602288682,11.79966366,83.51,83.471,2.29568303]
[1771602288859,0.14216157,83.509,83.471,2.29568303]
[1771602289058,11.79966366,83.5,83.471,2.29568303]
[1771602289779,11.79966366,83.51,83.481,2.29568303]
[1771602290659,11.79966366,83.52,83.483,2.29568303]
[1771602290880,11.79966366,83.52,83.49,2.29568303]
[1771602292181,11.81667997,83.52,83.49,2.29568303]
[1771602292585,11.81667997,83.52,83.482,41.92520542]
[1771602292586,11.96988377,83.543,83.501,2.29568303]
[1771602292773,11.81667997,83.53,83.501,2.29568303]
[1771602294081,11.81667997,83.54,83.511,2.29568303]
[1771602294295,14.18867302,83.548,83.511,2.29568303]
[1771602294504,2.21937661,83.548,83.511,2.29568303]
[1771602294699,2.21937661,83.548,83.513,2.29568303]
[1771602295212,23.7841285,83.56,83.521,2.29568303]
[1771602295498,0.14216157,83.559,83.521,2.29568303]
[1771602295675,2.21937661,83.549,83.512,11.97432704]
[1771602295881,2.21937661,83.549,83.513,2.29568303]
[1771602296899,2.21937661,83.549,83.515,2.29568303]
[1771602297094,23.78558403,83.55,83.515,2.29568303]
[1771602297794,11.81667997,83.57,83.531,2.29568303]
[1771602298020,23.97552389,83.59,83.561,2.29568303]
[1771602298202,14.03605658,83.58,83.55,2.29568303]
[1771602298379,14.03605658,83.58,83.523,3.69383402]
[1771602298380,2.21937661,83.621,83.571,2.29568303]
[1771602298582,2.21937661,83.599,83.561,2.29568303]
[1771602298899,11.96200866,83.598,83.563,2.29568303]
[1771602299075,14.18138527,83.598,83.563,2.29568303]
[1771602299278,11.81667997,83.59,83.563,2.29568303]
[1771602300194,11.81667997,83.58,83.542,2.29568303]
[1771602300677,11.81667997,83.6,83.563,2.29568303]
[1771602300880,23.77840555,83.6,83.571,2.29568303]
[1771602301108,23.77840555,83.6,83.562,11.9671621]
[1771602301109,11.95972958,83.614,83.581,2.29568303]
[1771602301408,11.81667997,83.62,83.581,2.29568303]
[1771602301582,11.81667997,83.6,83.571,2.29568303]
[1771602301783,14.03605658,83.58,83.54,14.112363]
[1771602302108,11.81667997,83.57,83.543,11.96986455]
[1771602302318,11.81667997,83.58,83.551,2.29568303]
[1771602302806,11.81667997,83.56,83.531,11.97160335]
[1771602303111,11.96630289,83.568,83.532,2.29568303]
[1771602303295,11.96630289,83.568,83.51,0.14216157]
[1771602303296,11.81667997,83.56,83.521,2.29568303]
[1771602303484,11.81667997,83.56,83.523,2.29568303]
[1771602303996,11.81667997,83.56,83.531,2.29568303]
[1771602304608,41.88206011,83.568,83.531,2.29568303]
[1771602304789,11.81667997,83.56,83.531,2.29568303]
[1771602304992,11.81667997,83.56,83.503,3.69383402]
[1771602304993,2.21937661,83.569,83.533,2.29568303]
[1771602305212,14.03605658,83.57,83.533,2.29568303]
[1771602305412,11.81667997,83.56,83.533,2.29568303]
[1771602305587,11.96505852,83.577,83.541,2.29568303]
[1771602305911,11.81667997,83.58,83.541,2.29568303]
[1771602306105,23.78136773,83.58,83.541,2.29568303]
[1771602306908,11.81667997,83.58,83.541,2.29568303]
[1771602307087,11.9632966,83.589,83.553,2.09402044]
[1771602307693,11.81667997,83.58,83.553,2.09402044]
[1771602307887,11.9632966,83.589,83.553,2.09402044]
[1771602308209,11.81667997,83.58,83.553,2.09402044]
[1771602308402,11.9632966,83.589,83.553,2.09402044]
[1771602308605,2.47215037,103.31,83.561,2.09402044]
[1771602308606,11.81667997,83.6,83.561,2.09402044]
[1771602308801,11.96082082,83.607,83.571,2.09402044]
[1771602309116,11.96186557,83.599,83.571,2.09402044]
[1771602309414,2.2222109,83.598,83.562,11.9671621]
[1771602309593,2.2222109,83.598,83.563,2.09402044]
[1771602309788,11.96186557,83.599,83.533,9.0546959]
[1771602309789,11.81667997,83.58,83.551,2.09402044]
[1771602310119,2.2222109,83.589,83.555,2.09402044]
[1771602310810,11.81667997,83.58,83.555,2.09402044]
[1771602311198,11.81667997,83.58,83.556,11.96802144]
[1771602311393,11.96472798,83.579,83.555,14.06210722]
[1771602311706,2.2222109,83.579,83.545,11.96958947]
[1771602311907,11.81667997,83.56,83.535,11.9710301]
[1771602312304,2.2222109,83.569,83.536,2.09402044]
[1771602312704,2.2222109,83.569,83.53,23.78834133]
[1771602312705,11.81667997,83.56,83.522,2.09402044]
[1771602313609,2.2222109,83.569,83.531,2.09402044]
[1771602313610,11.9664977,83.567,83.531,2.09402044]
[1771602313985,11.81667997,83.56,83.531,2.09402044]
[1771602314598,11.96571739,83.573,83.541,2.09402044]
[1771602315116,11.96571739,83.573,83.523,41.90462507]
[1771602315117,11.96359594,83.587,83.551,2.09402044]
[1771602315309,11.81667997,83.58,83.551,2.09402044]
[1771602315495,11.9661597,83.569,83.541,11.97017033]
[1771602315894,2.2222109,83.568,83.534,11.97109863]
[1771602316710,23.78277138,83.57,83.535,2.09402044]
[1771602317693,2.2222109,83.549,83.481,2.09402044]
[1771602317893,11.81667997,83.55,83.511,2.09402044]
[1771602319495,11.96902416,83.549,83.513,2.09402044]
[1771602320309,11.81667997,83.55,83.513,2.09402044]
[1771602320522,11.96902416,83.549,83.513,2.09402044]
[1771602321693,11.96902416,83.549,83.515,2.09402044]
[1771602322621,11.81667997,83.53,83.493,32.03647278]
[1771602322799,2.21948049,83.529,83.495,2.09402044]
[1771602323714,11.97203333,83.528,83.496,11.97662163]
[1771602323900,11.81667997,83.54,83.501,2.09402044]
[1771602324424,167.5,83.57,83.511,2.09402044]
[1771602324425,11.96935868,83.547,83.511,2.09402044]
[1771602324609,11.81667997,83.54,83.511,2.09402044]
[1771602324924,11.96783204,83.558,83.521,2.09402044]
[1771602325097,11.81667997,83.56,83.521,2.09402044]
[1771602325427,11.81667997,83.56,83.496,149.70777041]
[1771602325428,11.9661597,83.569,83.531,2.09402044]
[1771602325729,11.9661597,83.569,83.533,2.09402044]
[1771602326699,0.14216157,83.587,83.532,11.97146003]
[1771602326700,14.1753746,83.6,83.532,41.90011012]
[1771602326902,47.82464931,83.639,83.571,2.09402044]
[1771602326903,2.21365212,83.609,83.571,2.09402044]
[1771602327108,11.96143632,83.602,83.571,2.09402044]
[1771602327520,11.81667997,83.6,83.571,2.09402044]
[1771602327704,3.69383402,83.628,83.56,2.09402044]
[1771602327705,11.81667997,83.59,83.56,2.09402044]
[1771602327896,11.81667997,83.58,83.551,2.09402044]
[1771602328301,2.21223742,83.589,83.551,2.09402044]
[1771602329122,11.96186557,83.599,83.571,2.09402044]
[1771602329500,11.81667997,83.59,83.56,2.09402044]
[1771602329707,14.02613507,83.58,83.548,2.09402044]
[1771602329920,11.96472798,83.579,83.548,2.09402044]
[1771602330313,14.17281823,83.579,83.544,11.96964819]
[1771602330512,11.81667997,83.57,83.539,11.97045691]
[1771602330712,11.81667997,83.57,83.538,2.09402044]
[1771602331421,11.81667997,83.57,83.53,11.81667997]
[1771602331422,2.20673837,83.569,83.534,11.97105924]
[1771602331616,2.20673837,83.559,83.511,29.93582551]
[1771602331924,11.97045691,83.539,83.503,2.09402044]
[1771602332625,11.81667997,83.54,83.503,2.09402044]
[1771602332831,11.81667997,83.53,83.502,11.97576105]
[1771602333134,11.81667997,83.53,83.491,2.09402044]
[1771602334026,11.9707435,83.537,83.501,2.09402044]
[1771602334535,11.81667997,83.53,83.501,2.09402044]
[1771602334829,11.81667997,83.53,83.493,11.97705196]
[1771602335031,11.81667997,83.52,83.493,11.97705196]
[1771602335421,11.81667997,83.51,83.481,14.07279405]
[1771602335818,2.20147336,83.519,83.481,14.07279405]
[1771602336022,11.97346679,83.518,83.481,14.07279405]
[1771602336322,11.81667997,83.51,83.482,2.09402044]
[1771602336714,44.10732872,83.518,83.483,2.09402044]
[1771602336715,11.97346679,83.518,83.483,2.09402044]
[1771602337245,11.81667997,83.51,83.483,2.09402044]
[1771602337535,11.81667997,83.51,83.471,2.23602402]
[1771602337912,11.97475721,83.509,83.473,11.97986874]
[1771602338132,11.97475721,83.509,83.474,2.23602402]
[1771602338334,0.14216157,83.527,83.473,11.97986874]
[1771602338335,11.81667997,83.52,83.481,2.23602402]
[1771602338907,11.9713505,83.533,83.5,11.81667997]
[1771602339113,23.78708544,83.54,83.501,2.23602402]
[1771602339415,10.3,83.591,83.511,2.23602402]
[1771602339416,11.81667997,83.55,83.511,2.23602402]
[1771602339928,11.96902416,83.549,83.512,11.97432704]
[1771602340135,11.96847885,83.553,83.521,2.23602402]
[1771602340635,2.1939867,83.558,83.521,2.23602402]
[1771602341215,2.1939867,83.549,83.512,11.97432704]
[1771602342138,2.1939867,83.549,83.511,2.23602402]
[1771602342139,11.97045691,83.539,83.511,2.23602402]
[1771602342325,11.81667997,83.54,83.512,11.97432704]
[1771602342638,11.97045691,83.539,83.512,11.97432704]
[1771602342838,11.97045691,83.539,83.511,2.23602402]
[1771602343217,11.97045691,83.539,83.508,11.97485086]
[1771602343837,11.97045691,83.539,83.509,2.23602402]
[1771602344039,11.97045691,83.539,83.48,0.14216157]
[1771602344040,11.81667997,83.55,83.511,2.23602402]
[1771602344216,23.78556773,83.55,83.511,2.23602402]
[1771602344542,2.18930214,83.549,83.511,2.23602402]
[1771602344959,11.81667997,83.54,83.511,2.23602402]
[1771602346240,11.97045691,83.539,83.511,2.23602402]
[1771602347359,11.97045691,83.539,83.505,11.97525978]
[1771602347647,11.97045691,83.539,83.505,14.2112838]
[1771602348015,11.81667997,83.54,83.506,2.23602402]
[1771602348238,11.96902416,83.549,83.512,11.97432704]
[1771602348438,11.96902416,83.549,83.513,2.23602402]
[1771602348642,11.81667997,83.55,83.513,2.23602402]
[1771602348845,23.78558352,83.55,83.513,2.23602402]
[1771602350118,53.70778579,83.55,83.513,2.23602402]
[1771602350449,11.97045691,83.539,83.514,11.97404028]
[1771602351631,11.81667997,83.54,83.514,11.97404028]
[1771602351944,2.18164825,83.547,83.514,11.97404028]
[1771602352150,11.81667997,83.54,83.514,11.97404028]
[1771602352528,11.96916742,83.548,83.503,2.23602402]
[1771602352529,11.81667997,83.53,83.503,2.23602402]
[1771602352854,11.81667997,83.53,83.504,2.23602402]
[1771602353426,13.99627757,83.52,83.493,11.97705196]
[1771602353922,2.1795976,83.529,83.494,2.23602402]
[1771602354124,11.8164437,83.53,83.494,2.23602402]
[1771602354328,41.89659919,83.539,83.494,2.23602402]
[1771602354535,2.17857821,83.538,83.494,2.23602402]
[1771602354953,11.8164437,83.54,83.501,2.23602402]
[1771602355756,11.96945395,83.546,83.493,11.97705196]
[1771602355757,2.17757811,83.529,83.493,11.97705196]
[1771602356056,2.17757811,83.529,83.494,2.23602402]
[1771602356439,2.17658581,83.538,83.501,2.23602402]
[1771602356741,22.1164437,83.54,83.501,2.23602402]
[1771602357138,44.073185,83.539,83.503,2.23602402]
[1771602357339,14.14704272,83.539,83.503,2.23602402]
[1771602358343,22.1164437,83.54,83.511,2.23602402]
[1771602358344,10.3,83.54,83.511,2.23602402]
[1771602358649,11.8164437,83.55,83.511,2.23602402]
[1771602358650,11.96902416,83.549,83.511,2.23602402]
[1771602358942,14.14365421,83.549,83.511,2.23602402]
[1771602359647,14.14365421,83.549,83.513,2.23602402]
[1771602359849,11.8164437,83.54,83.506,11.97513902]
[1771602360033,11.8164437,83.54,83.507,2.23602402]
[1771602360644,41.89158457,83.549,83.511,2.23602402]
[1771602360952,2.17275036,83.548,83.511,2.23602402]
[1771602361245,11.8164437,83.53,83.501,2.23602402]
[1771602361628,11.8164437,83.52,83.496,2.23602402]
[1771602361942,11.8164437,83.51,83.478,2.23602402]
[1771602362523,11.97332343,83.519,83.481,2.23602402]
[1771602363339,11.8164437,83.51,83.481,2.23602402]
[1771602363546,11.8164437,83.53,83.491,2.23602402]
[1771602363728,11.97189,83.529,83.491,2.23602402]
[1771602363930,11.97189,83.529,83.493,2.23602402]
[1771602364145,11.97130463,83.534,83.501,2.23602402]
[1771602365149,11.8164437,83.54,83.5,11.8164437]
[1771602365150,11.97045691,83.539,83.503,2.23602402]
[1771602365527,29.92127983,83.553,83.52,11.8164437]
[1771602365732,2.16738764,83.549,83.511,2.26841748]
[1771602365927,2.16738764,83.529,83.491,2.26841748]
[1771602366151,11.8164437,83.52,83.491,2.26841748]
[1771602366851,11.8164437,83.51,83.481,14.24719109]
[1771602367031,2.16652331,83.519,83.482,2.26841748]
[1771602367453,2.16652331,83.519,83.457,5.36086188]
[1771602367454,2.10422302,83.509,83.475,2.21326239]
[1771602367632,11.8164437,83.5,83.475,2.21326239]
[1771602367827,11.8164437,83.49,83.46,14.02970609]
[1771602368040,2.10422302,83.499,83.461,2.21326239]
[1771602368352,11.8164437,83.5,83.471,2.21326239]
[1771602368954,13.92066672,83.5,83.471,2.21326239]
[1771602369656,14.08041435,83.499,83.471,2.21326239]
[1771602369954,11.8164437,83.5,83.473,2.21326239]
[1771602370145,2.10422302,83.518,83.481,2.21326239]
[1771602370349,11.8164437,83.51,83.481,2.21326239]
[1771602371252,11.8164437,83.49,83.462,2.21326239]
[1771602371453,2.10422302,83.499,83.465,2.21326239]
[1771602371942,11.97619133,83.499,83.467,2.21326239]
[1771602372752,2.10422302,83.543,83.468,2.21326239]
[1771602373071,2.10422302,83.543,83.467,0.28432314]
[1771602373072,11.8164437,83.52,83.481,2.21326239]
[1771602373261,11.8164437,83.54,83.5,11.8164437]
[1771602373436,11.96932892,83.547,83.52,14.02970609]
[1771602373765,8.36176345,83.583,83.541,2.21326239]
[1771602373936,11.8164437,83.58,83.543,2.21326239]
[1771602374134,2.10422302,83.559,83.519,2.21326239]
[1771602374442,11.8164437,83.55,83.521,2.21326239]
[1771602374753,2.10422302,83.549,83.51,11.8164437]
[1771602375055,0.14216157,83.549,83.511,2.21326239]
[1771602375244,11.8164437,83.57,83.531,2.21326239]
[1771602375552,0.14216157,83.569,83.531,2.21326239]
[1771602375854,2.24638459,83.569,83.531,2.21326239]
[1771602376242,13.92066672,83.56,83.524,11.97255455]
[1771602376558,13.92066672,83.55,83.515,11.97389599]
[1771602377056,13.92066672,83.55,83.515,14.18715838]
[1771602377246,11.8164437,83.54,83.51,23.79103966]
[1771602377556,2.10422302,83.549,83.511,2.21326239]
[1771602378354,41.89208598,83.548,83.511,2.21326239]
[1771602378560,41.89208598,83.548,83.512,11.97432704]
[1771602378953,11.8164437,83.53,83.49,2.21326239]
[1771602379257,2.10422302,83.519,83.481,11.97877361]
[1771602379556,2.10422302,83.519,83.481,14.192036]
[1771602379859,11.8164437,83.51,83.481,14.192036]
[1771602380058,11.8164437,83.51,83.47,11.8164437]
[1771602380059,2.10422302,83.509,83.476,11.97945455]
[1771602380557,11.8164437,83.5,83.471,14.19337892]
[1771602380940,2.10422302,83.507,83.472,2.21326239]
[1771602381238,11.8164437,83.5,83.472,2.21326239]
[1771602381850,11.8164437,83.5,83.461,2.21326239]
[1771602382255,11.8164437,83.49,83.461,2.21326239]
[1771602382454,11.97762579,83.489,83.461,2.21326239]
[1771602383445,11.97762579,83.489,83.461,14.19484815]
[1771602383765,2.10422302,83.488,83.451,2.21326239]
[1771602384082,2.10422302,83.488,83.45,11.9164437]
[1771602384083,11.8164437,83.48,83.45,0.1]
[1771602384243,11.8164437,83.47,83.45,0.1]
[1771602384457,11.98049575,83.469,83.441,2.21326239]
[1771602385082,2.10422302,83.479,83.442,11.98437237]
[1771602385083,11.9792041,83.478,83.442,11.98437237]
[1771602385380,11.9792041,83.478,83.443,2.21326239]
[1771602385563,11.8164437,83.47,83.443,2.21326239]
[1771602385758,0.14216157,83.469,83.44,0.1]
[1771602385976,0.14216157,83.469,83.41,0.1]
[1771602385977,11.8164437,83.45,83.423,2.21326239]
[1771602386176,2.10422302,83.459,83.423,14.20028165]
[1771602386355,2.10422302,83.459,83.423,2.21326239]
[1771602386557,11.8164437,83.43,83.41,0.1]
[1771602386864,0.14216157,83.457,83.41,0.1]
[1771602386865,11.8164437,83.44,83.41,0.1]
[1771602387264,41.93726185,83.458,83.421,2.21326239]
[1771602387265,11.98207481,83.458,83.421,2.21326239]
[1771602387677,2.10291045,83.449,83.411,11.98882641]
[1771602387879,2.10291045,83.449,83.412,2.21326239]
[1771602388056,11.8164437,83.45,83.412,2.21326239]
[1771602388474,11.98336708,83.449,83.413,11.98853895]
[1771602388665,11.98336708,83.449,83.414,2.21326239]
[1771602389075,11.8164437,83.43,83.41,0.1]
[1771602389661,13.9158691,83.44,83.41,12.08885802]
[1771602390065,11.8164437,83.44,83.411,2.21326239]
[1771602390462,47.90399274,83.501,83.41,12.08885802]
[1771602390463,11.98251411,83.455,83.421,2.21326239]
[1771602390676,11.98251411,83.455,83.412,11.98868268]
[1771602390677,11.98108694,83.465,83.43,11.8164437]
[1771602390978,11.8164437,83.46,83.431,2.21326239]
[1771602391764,2.08912373,83.459,83.421,2.21326239]
[1771602391961,11.8164437,83.44,83.41,0.1]
[1771602392176,41.93376171,83.465,83.431,2.21326239]
[1771602392487,11.98049575,83.469,83.433,2.21326239]
[1771602393184,2.0857633,83.459,83.423,2.21326239]
[1771602393377,11.8164437,83.46,83.425,2.21326239]
[1771602394604,2.07918518,83.439,83.41,0.1]
[1771602394883,2.07918518,83.439,83.398,2.21326239]
[1771602394884,11.8164437,83.43,83.398,2.21326239]
[1771602395274,11.8164437,83.45,83.411,2.21326239]
[1771602395978,11.98193124,83.459,83.421,2.21326239]
[1771602396385,11.8164437,83.45,83.421,2.21326239]
[1771602396686,11.8164437,83.45,83.39,0.1]
[1771602396687,11.98336708,83.449,83.411,2.21326239]
[1771602396873,11.98336708,83.449,83.401,2.21326239]
[1771602396874,13.8891911,83.44,83.401,2.21326239]
[1771602397075,11.8164437,83.44,83.401,2.21326239]
[1771602397674,41.94178479,83.449,83.401,2.21326239]
[1771602397675,11.98336708,83.449,83.401,2.21326239]
[1771602398091,11.8164437,83.44,83.401,2.21326239]
[1771602398290,11.8164437,83.44,83.391,41.97095609]
[1771602398291,11.98336708,83.449,83.41,11.8164437]
[1771602398494,11.98336708,83.449,83.411,2.1345915]
[1771602399100,11.98336708,83.449,83.412,11.98868268]
[1771602399295,11.98336708,83.449,83.413,2.1345915]
[1771602399482,2.06023721,83.448,83.413,2.1345915]
[1771602400184,41.94178479,83.449,83.413,2.1345915]
[1771602400605,11.98336708,83.449,83.413,2.1345915]
[1771602401277,2.05419956,83.448,83.413,14.12305622]
[1771602401796,11.8164437,83.44,83.413,14.12305622]
[1771602402169,11.8164437,83.44,83.413,2.1345915]
[1771602402380,13.86768115,83.44,83.401,2.1345915]
[1771602403081,2.05123745,83.439,83.401,2.1345915]
[1771602403295,11.8164437,83.42,83.39,2.2345915]
[1771602403495,2.04833559,83.429,83.395,2.1345915]
[1771602404195,11.8164437,83.43,83.395,2.1345915]
[1771602404390,11.98349558,83.449,83.411,2.1345915]
[1771602404699,11.98349558,83.449,83.421,2.1345915]
[1771602405698,11.98349558,83.449,83.422,11.98724557]
[1771602405996,11.98349558,83.449,83.423,2.1345915]
[1771602406399,11.98221838,83.457,83.423,2.1345915]
[1771602406607,11.98221838,83.457,83.431,2.1345915]
[1771602406788,11.8164437,83.47,83.431,2.1345915]
[1771602407506,11.8164437,83.47,83.43,11.8164437]
[1771602407507,11.97811089,83.486,83.451,2.1345915]
[1771602407707,47.88257279,83.538,83.43,0.14216157]
[1771602407708,11.97642114,83.498,83.461,2.1345915]
[1771602407887,11.8164437,83.49,83.463,2.1345915]
[1771602408087,14.01333933,83.498,83.44,2.1345915]
[1771602408088,11.8164437,83.48,83.44,2.1345915]
[1771602408418,11.8164437,83.48,83.441,2.1345915]
[1771602409902,11.8164437,83.48,83.44,23.80110333]
[1771602409903,11.9790606,83.479,83.443,2.1345915]
[1771602410484,2.02869759,83.478,83.443,2.1345915]
[1771602411278,11.8164437,83.47,83.443,2.1345915]
[1771602411482,2.02869759,83.478,83.443,2.1345915]
[1771602411916,11.8164437,83.48,83.445,2.1345915]
[1771602412196,11.8164437,83.48,83.444,11.98408513]
[1771602412197,11.8164437,83.48,83.451,2.1345915]
[1771602412399,11.8164437,83.47,83.441,2.1345915]
[1771602412598,2.02335914,83.479,83.441,14.1191075]
[1771602412782,2.02335914,83.479,83.441,11.984516]
[1771602412986,2.02335914,83.479,83.442,2.1345915]
[1771602414597,11.9792041,83.478,83.444,2.1345915]
[1771602415590,11.9792041,83.478,83.451,2.1345915]
[1771602417490,11.83000469,83.49,83.451,2.1345915]
[1771602417810,11.83000469,83.49,83.45,11.83000469]
[1771602417811,11.97762579,83.489,83.453,2.1345915]
[1771602418510,11.97636537,83.498,83.461,2.1345915]
[1771602418712,0.14216157,83.517,83.452,41.94027703]
[1771602418713,11.97475721,83.509,83.471,2.1345915]
[1771602418884,11.97332343,83.519,83.491,2.1345915]
[1771602419591,11.83000469,83.51,83.477,2.1345915]
[1771602420218,11.83000469,83.51,83.478,14.1137956]
[1771602420513,41.90763556,83.517,83.45,0.14216157]
[1771602420514,11.83000469,83.49,83.459,11.98180262]
[1771602420830,11.83000469,83.49,83.46,2.1345915]
[1771602420989,2.00319285,83.479,83.441,2.1345915]
[1771602421309,2.00319285,83.479,83.423,3.69383402]
[1771602421310,11.83000469,83.48,83.451,2.1345915]
[1771602422004,11.9790606,83.479,83.451,2.1345915]
[1771602422410,41.9267121,83.479,83.451,2.1345915]
[1771602422905,11.83000469,83.49,83.453,2.1345915]
[1771602423122,11.97645349,83.498,83.461,2.1345915]
[1771602423998,3.69383402,83.517,83.438,5.36086188]
[1771602423999,11.97568716,83.503,83.471,2.1345915]
[1771602424188,11.83000469,83.5,83.471,2.1345915]
[1771602424389,11.83000469,83.51,83.471,2.1345915]
[1771602424586,1.9937695,83.528,83.462,41.93525196]
[1771602424587,11.97361016,83.517,83.491,2.1345915]
[1771602424987,1.9937695,83.509,83.471,2.1345915]
[1771602425291,11.83000469,83.5,83.471,2.1345915]
[1771602425922,11.97361016,83.517,83.471,2.1345915]
[1771602426085,11.97361016,83.517,83.448,5.36086188]
[1771602426086,11.83000469,83.52,83.491,2.06407844]
[1771602427514,11.97332343,83.519,83.491,2.06407844]
[1771602427715,31.90499224,83.55,83.493,1.96233939]
[1771602428017,11.96945395,83.546,83.521,1.96233939]
[1771602428587,29.92056371,83.555,83.521,1.96233939]
[1771602428800,11.96830792,83.554,83.521,1.96233939]
[1771602429014,11.83000469,83.55,83.521,1.96233939]
[1771602429517,11.96902416,83.549,83.521,13.93525231]
[1771602429705,11.96902416,83.549,83.522,1.96233939]
[1771602430410,0.2,83.56,83.541,1.96233939]
[1771602430614,1.97621021,83.589,83.551,1.96233939]
[1771602430914,1.97621021,83.589,83.528,5.36086188]
[1771602430915,0.2,83.59,83.57,11.83000469]
[1771602431112,0.2,83.59,83.571,1.96233939]
[1771602431312,11.9632966,83.589,83.551,1.96233939]
[1771602431812,12.03000469,83.59,83.551,1.96233939]
[1771602431813,0.2,83.59,83.561,1.96233939]
[1771602432014,11.96186557,83.599,83.571,1.96233939]
[1771602432713,11.83000469,83.61,83.581,1.96233939]
[1771602432905,11.95757452,83.629,83.591,1.96233939]
[1771602433106,11.95757452,83.629,83.568,5.36086188]
[1771602433107,11.95757452,83.629,83.601,1.96233939]
[1771602433413,0.2,83.63,83.601,1.96233939]
[1771602433714,0.2,83.63,83.611,1.96233939]
[1771602433897,11.95757452,83.629,83.601,1.96233939]
[1771602434214,0.2,83.67,83.621,1.96233939]
[1771602434407,0.2,83.68,83.651,1.96233939]
[1771602434914,0.2,83.73,83.676,0.28432314]
[1771602434915,1e-08,83.71,83.676,0.28432314]
[1771602435111,1e-08,83.71,83.691,1.96233939]
[1771602435713,11.8300047,83.71,83.674,1.96233939]
[1771602435904,1.98555577,83.699,83.66,11.83000469]
[1771602436300,1.98555577,83.689,83.65,11.83000469]
[1771602436501,1.98555577,83.679,83.64,11.83000469]
[1771602436814,1e-08,83.71,83.63,11.83000469]
[1771602436815,11.83000469,83.67,83.63,11.83000469]
[1771602437112,1.98555577,83.669,83.63,11.83000469]
[1771602437314,11.83000469,83.68,83.64,11.83000469]
[1771602437618,41.80651942,83.719,83.64,11.83000469]
[1771602437619,11.94657491,83.706,83.67,11.83000469]
[1771602437912,11.94657491,83.706,83.671,1.96233939]
[1771602438105,11.94657491,83.706,83.67,23.7816716]
[1771602438106,1e-08,83.71,83.69,11.83000469]
[1771602438413,1.98555577,83.74,83.701,1.96233939]
[1771602438594,1.98555577,83.74,83.71,11.83000469]
[1771602438799,1.98555577,83.74,83.701,1.96233939]
[1771602438800,11.94262251,83.734,83.701,1.96233939]
[1771602438995,11.9423673,83.736,83.71,11.83000469]
[1771602439195,11.94329324,83.729,83.7,11.83000469]
[1771602439399,11.94329324,83.729,83.671,0.28432314]
[1771602439400,0.2,83.73,83.711,1.96233939]
[1771602439718,1.98555577,83.728,83.684,1.96233939]
[1771602439909,1.98555577,83.728,83.642,47.82247375]
[1771602439910,1.98555577,83.719,83.681,1.96233939]
[1771602440297,11.83000469,83.71,83.681,1.96233939]
[1771602440503,1.98555577,83.709,83.67,13.79234408]
[1771602440698,11.83000469,83.7,83.661,1.96233939]
[1771602440913,11.83000469,83.7,83.643,41.84450581]
[1771602440914,11.83000469,83.72,83.681,1.96233939]
[1771602441217,1.98555577,83.739,83.701,1.96233939]
[1771602441525,11.94329324,83.729,83.7,11.83000469]
[1771602441825,11.94329324,83.729,83.69,1.96233939]
[1771602441826,1.98555577,83.728,83.69,13.79234408]
[1771602442003,11.94329324,83.729,83.68,11.83000469]
[1771602442004,1.98555577,83.719,83.68,11.83000469]
[1771602442198,1.98555577,83.709,83.672,1.96233939]
[1771602442515,11.94329324,83.729,83.691,1.96233939]
[1771602442716,1.98555577,83.728,83.691,1.96233939]
[1771602442907,11.83000469,83.72,83.691,1.96233939]
[1771602443305,1.98555577,83.719,83.68,11.83000469]
[1771602443504,1.98555577,83.719,83.681,1.96233939]
[1771602443708,1.98555577,83.709,83.67,11.83000469]
[1771602444120,1.98555577,83.709,83.67,23.78171976]
[1771602444419,13.81556046,83.7,83.67,11.83000469]
[1771602444622,13.81556046,83.71,83.67,25.74405915]
[1771602444820,1.98555577,83.709,83.67,25.74405915]